bitfinex/quotes_BTCUSD_20241024
["timestamp","ask_amount","ask_price","bid_price","bid_amount"]
[1729752925881,0.328075,67184.0,67183.0,0.000826]
[1729752926080,0.47857881,67184.0,67183.0,0.000826]
[1729752927287,0.58556181,67184.0,67183.0,0.000826]
[1729752928947,0.59056181,67184.0,67183.0,0.000826]
[1729752929145,0.59056181,67184.0,67181.0,0.000825]
[1729752929146,0.006983,67182.0,67181.0,0.000825]
[1729752929351,0.61632588,67181.0,67179.0,0.000842]
[1729752929566,0.77182969,67181.0,67179.0,0.000842]
[1729752930173,0.86024701,67181.0,67179.0,0.000842]
[1729752930379,0.72543435,67181.0,67179.0,0.000842]
[1729752932133,0.87593816,67181.0,67179.0,0.000842]
[1729752932355,0.94220387,67181.0,67179.0,0.000842]
[1729752932647,0.79170006,67181.0,67179.0,0.000842]
[1729752933138,0.72543435,67181.0,67179.0,0.000842]
[1729752933345,0.73543435,67181.0,67179.0,0.000842]
[1729752934934,0.443566,67180.0,67179.0,0.000842]
[1729752935164,0.78871676,67180.0,67179.0,0.000842]
[1729752935368,0.79571676,67180.0,67179.0,0.000842]
[1729752935845,0.81783933,67180.0,67179.0,0.000842]
[1729752936246,0.435567,67179.0,67177.0,0.000842]
[1729752936468,0.65224625,67179.0,67177.0,0.000842]
[1729752937079,0.80275006,67179.0,67177.0,0.000842]
[1729752937306,0.435569,67178.0,67177.0,0.000842]
[1729752937507,0.76654673,67178.0,67177.0,0.000842]
[1729752937933,0.63018019,67178.0,67177.0,0.000842]
[1729752938123,0.76654673,67178.0,67177.0,0.000842]
[1729752938244,0.63018019,67178.0,67177.0,0.000842]
[1729752938445,0.58607281,67178.0,67177.0,0.000842]
[1729752939102,0.425771,67177.0,67152.0,0.22297704]
[1729752939306,0.57627481,67177.0,67152.0,0.22297704]
[1729752942119,0.58015048,67177.0,67152.0,0.22297704]
[1729752943260,0.58515048,67177.0,67152.0,0.22297704]
[1729752944469,0.034983,67172.0,67152.0,0.22297704]
[1729752944688,0.034983,67172.0,67148.0,0.038742]
[1729752944689,0.249094,67164.0,67153.0,0.22297704]
[1729752944870,0.61246435,67164.0,67153.0,0.22297704]
[1729752945084,0.61246435,67164.0,67148.0,0.000842]
[1729752946257,0.94064139,67164.0,67148.0,0.000842]
[1729752946396,0.36000454,67149.0,67148.0,0.000842]
[1729752946602,0.36698754,67149.0,67148.0,0.000842]
[1729752947008,0.121121,67149.0,67148.0,0.000842]
[1729752949912,0.50346458,67149.0,67148.0,0.000842]
[1729752950115,0.28048754,67149.0,67148.0,0.000842]
[1729752953545,0.35698754,67149.0,67148.0,0.000842]
[1729752955807,0.84555789,67149.0,67148.0,0.000842]
[1729752956028,0.70919135,67149.0,67148.0,0.000842]
[1729752956459,0.75603769,67149.0,67148.0,0.000842]
[1729752956691,0.422321,67149.0,67148.0,0.000842]
[1729752956897,0.51392744,67149.0,67148.0,0.000842]
[1729752957549,0.219138,67149.0,67148.0,0.000842]
[1729752957766,0.21272744,67149.0,67148.0,0.000842]
[1729752957980,0.121121,67149.0,67148.0,0.000842]
[1729752959108,0.119138,67149.0,67148.0,0.000842]
[1729752959446,0.121121,67149.0,67148.0,0.000842]
[1729752959866,0.119138,67149.0,67148.0,0.000842]
[1729752960072,0.121121,67149.0,67148.0,0.000842]
[1729752960279,0.119138,67149.0,67148.0,0.000842]
[1729752960873,0.121121,67149.0,67148.0,0.000842]
[1729752961334,0.119138,67149.0,67148.0,0.000842]
[1729752961788,0.238276,67149.0,67134.0,0.22797704]
[1729752962028,0.119142,67147.0,67142.0,0.119149]
[1729752962286,0.13642486,67154.0,67145.0,0.23829]
[1729752962529,0.22297704,67149.0,67146.0,0.16809399]
[1729752962771,0.238251,67156.0,67148.0,0.238279]
[1729752963044,0.119126,67156.0,67150.0,0.238271]
[1729752963270,0.22297704,67157.0,67151.0,0.01756085]
[1729752963502,0.22297704,67157.0,67148.0,0.238276]
[1729752963753,0.119132,67153.0,67149.0,0.01757258]
[1729752963992,0.22297704,67157.0,67150.0,0.119136]
[1729752964254,0.22297704,67157.0,67149.0,0.25584858]
[1729752964255,0.119127,67155.0,67151.0,0.119134]
[1729752964492,0.22297704,67157.0,67151.0,0.01756085]
[1729752964708,0.119127,67155.0,67151.0,0.119133]
[1729752964928,0.23824,67159.0,67150.0,0.238272]
[1729752965144,0.119125,67156.0,67152.0,0.119132]
[1729752965363,0.119128,67155.0,67151.0,0.01756085]
[1729752965625,0.238237,67160.0,67149.0,0.238273]
[1729752965626,0.03,67156.0,67153.0,0.01754912]
[1729752965865,0.03,67156.0,67151.0,0.119133]
[1729752966138,0.03,67156.0,67152.0,0.02248053]
[1729752966367,0.149126,67156.0,67152.0,0.02248053]
[1729752966617,0.03,67156.0,67152.0,0.14161153]
[1729752966861,0.03,67156.0,67153.0,0.11913]
[1729752967094,0.03,67156.0,67154.0,0.01945977]
[1729752967345,0.149126,67156.0,67152.0,0.12211002]
[1729752967565,0.149126,67156.0,67155.0,0.0194539]
[1729752967802,0.03,67156.0,67149.0,0.238273]
[1729752968064,0.03,67156.0,67155.0,0.1385809]
[1729752968314,0.03,67156.0,67155.0,0.1170539]
[1729752969228,0.03,67156.0,67155.0,0.2361809]
[1729752969457,0.03,67156.0,67155.0,0.38668471]
[1729752969706,0.22297704,67166.0,67155.0,0.40398257]
[1729752969947,0.22297704,67166.0,67161.0,0.119116]
[1729752970197,0.22297704,67166.0,67161.0,0.26961981]
[1729752970446,0.22297704,67166.0,67161.0,0.42546338]
[1729752970686,0.22297704,67166.0,67161.0,0.28903852]
[1729752971391,0.238175,67178.0,67161.0,0.28903852]
[1729752971392,0.240158,67178.0,67161.0,0.42546338]
[1729752971635,0.119091,67176.0,67161.0,0.56778038]
[1729752971853,0.238175,67178.0,67161.0,0.56778038]
[1729752972079,0.119093,67174.0,67161.0,0.56778038]
[1729752972301,0.238175,67178.0,67161.0,0.56778038]
[1729752972548,0.238171,67179.0,67161.0,0.56778038]
[1729752972776,0.34206604,67177.0,67161.0,0.56778038]
[1729752973263,0.22297704,67177.0,67161.0,0.56778038]
[1729752973496,0.119094,67174.0,67161.0,0.56778038]
[1729752973709,0.22297704,67177.0,67161.0,0.56778038]
[1729752973931,0.119093,67174.0,67161.0,0.56778038]
[1729752974421,0.119095,67173.0,67161.0,0.56578038]
[1729752974635,0.34206604,67177.0,67161.0,0.56578038]
[1729752974855,0.238181,67176.0,67161.0,0.56578038]
[1729752975493,0.22297704,67177.0,67161.0,0.56578038]
[1729752975939,0.119093,67175.0,67161.0,0.56778038]
[1729752976148,0.22297704,67177.0,67161.0,0.56778038]
[1729752976783,0.34206604,67177.0,67161.0,0.56778038]
[1729752977002,0.119094,67174.0,67161.0,0.56778038]
[1729752977431,0.22297704,67177.0,67161.0,0.56778038]
[1729752977630,0.119092,67175.0,67161.0,0.56778038]
[1729752978192,0.00101698,67162.0,67161.0,0.56778038]
[1729752983544,0.00101698,67162.0,67161.0,0.52788038]
[1729752984156,0.00101698,67162.0,67161.0,0.52988038]
[1729752987818,0.00101698,67162.0,67161.0,0.70420524]
[1729752988057,0.00101698,67162.0,67161.0,0.80420524]
[1729752988333,0.00101698,67162.0,67161.0,0.7963566]
[1729752989064,0.00101698,67162.0,67161.0,0.80380545]
[1729752990960,0.22297704,67177.0,67176.0,0.010017]
[1729752991197,0.22297704,67177.0,67176.0,0.41603567]
[1729752991428,0.00165,67181.0,67180.0,0.1271]
[1729752991668,0.00165,67181.0,67180.0,0.42645362]
[1729752991882,0.00165,67181.0,67180.0,0.42147752]
[1729752992140,0.00165,67181.0,67180.0,0.42650247]
[1729752992346,0.00165,67181.0,67180.0,0.43062123]
[1729752992558,0.00165,67181.0,67180.0,0.43806854]
[1729752992786,0.00165,67181.0,67180.0,0.42862123]
[1729752993027,0.00165,67181.0,67180.0,0.28206061]
[1729752993284,0.00165,67181.0,67180.0,0.16297761]
[1729752993490,0.00165,67181.0,67180.0,0.29007761]
[1729752995334,0.00165,67181.0,67180.0,0.29207761]
[1729752995565,0.00165,67181.0,67180.0,0.29007761]
[1729752996791,0.00165,67181.0,67180.0,0.28507761]
[1729752997023,0.00165,67181.0,67180.0,0.29007761]
[1729752997504,0.00165,67181.0,67180.0,0.29752492]
[1729752998042,0.00165,67181.0,67180.0,0.17042492]
[1729752998234,0.00165,67181.0,67180.0,0.0124738]
[1729752998235,0.25715586,67181.0,67180.0,0.0124738]
[1729752998464,0.299231,67181.0,67180.0,0.0124738]
[1729752998695,0.119083,67180.0,67179.0,0.00211879]
[1729752998929,0.299231,67181.0,67179.0,0.00211879]
[1729752999148,0.119083,67180.0,67179.0,0.00211879]
[1729753000600,0.18015,67181.0,67179.0,0.00211879]
[1729753000851,0.299232,67181.0,67179.0,0.00211879]
[1729753001116,0.299231,67181.0,67180.0,0.01243717]
[1729753002819,0.299231,67181.0,67179.0,0.00211879]
[1729753002820,0.119083,67180.0,67179.0,0.00211879]
[1729753004000,0.18015,67181.0,67179.0,0.00211879]
[1729753004477,0.119083,67180.0,67179.0,0.00211879]
[1729753005215,0.18015,67181.0,67179.0,0.00211879]
[1729753006561,0.18015,67181.0,67179.0,0.12120279]
[1729753007225,0.18015,67181.0,67179.0,0.00211879]
[1729753007884,0.119083,67180.0,67179.0,0.00211879]
[1729753008528,0.119087,67178.0,67170.0,0.241217]
[1729753008780,0.238169,67179.0,67173.0,0.119095]
[1729753008961,0.119083,67180.0,67175.0,0.11909]
[1729753009206,0.31657486,67181.0,67177.0,0.119086]
[1729753009422,0.18015,67181.0,67171.0,0.15050381]
[1729753010084,0.18015,67181.0,67179.0,0.119083]
[1729753010292,0.18015,67181.0,67177.0,0.238175]
[1729753010507,0.18015,67181.0,67177.0,0.119087]
[1729753010714,0.18015,67181.0,67178.0,0.01248159]
[1729753011156,0.08055,67181.0,67180.0,0.119083]
[1729753012007,0.08055,67181.0,67180.0,0.13155873]
[1729753013300,0.08055,67181.0,67180.0,0.01247573]
[1729753013740,0.08055,67181.0,67178.0,0.26958881]
[1729753013967,0.08055,67181.0,67180.0,0.01247573]
[1729753014175,0.08055,67181.0,67179.0,0.01247866]
[1729753014646,0.08055,67181.0,67180.0,0.01247573]
[1729753015080,0.08055,67181.0,67178.0,0.15050381]
[1729753015287,0.08055,67181.0,67180.0,0.01247573]
[1729753015495,0.08055,67181.0,67179.0,0.01247866]
[1729753015702,0.08055,67181.0,67180.0,0.01247573]
[1729753016113,0.08055,67181.0,67178.0,0.26958881]
[1729753016330,0.08055,67181.0,67180.0,0.01247573]
[1729753016523,0.08055,67181.0,67179.0,0.01247866]
[1729753016740,0.08055,67181.0,67180.0,0.01247573]
[1729753017071,0.08055,67181.0,67178.0,0.26958881]
[1729753017298,0.08055,67181.0,67180.0,0.01247573]
[1729753017493,0.08055,67181.0,67179.0,0.01247866]
[1729753017671,0.08055,67181.0,67180.0,0.01248163]
[1729753018120,0.08055,67181.0,67178.0,0.15050381]
[1729753018297,0.08055,67181.0,67180.0,0.01248163]
[1729753018494,0.08055,67181.0,67178.0,0.15050381]
[1729753018495,0.08055,67181.0,67179.0,0.01248456]
[1729753018696,0.08055,67181.0,67180.0,0.01248163]
[1729753019136,0.08055,67181.0,67178.0,0.15050381]
[1729753019517,0.08055,67181.0,67179.0,0.01248456]
[1729753019941,0.4784849,67180.0,67179.0,0.01248456]
[1729753020187,0.35510786,67180.0,67179.0,0.01248456]
[1729753020396,0.35510786,67180.0,67172.0,0.005]
[1729753020397,0.119094,67174.0,67172.0,0.003017]
[1729753020619,0.119094,67174.0,67172.0,0.15050381]
[1729753020827,0.23818,67176.0,67173.0,0.01250215]
[1729753021042,0.238176,67177.0,67173.0,0.01250215]
[1729753021240,0.119092,67175.0,67173.0,0.01250215]
[1729753022292,0.0795,67179.0,67173.0,0.01551915]
[1729753022488,0.119089,67177.0,67173.0,0.01551915]
[1729753023186,0.11844995,67177.0,67173.0,0.01551915]
[1729753023674,0.0795,67179.0,67173.0,0.01551915]
[1729753023921,0.119088,67177.0,67173.0,0.01551915]
[1729753025094,0.119088,67177.0,67173.0,0.01250215]
[1729753025319,0.0795,67179.0,67174.0,0.119093]
[1729753025545,0.119088,67178.0,67173.0,0.01551915]
[1729753025766,0.119088,67178.0,67175.0,0.01249629]
[1729753025992,0.119088,67178.0,67174.0,0.01249922]
[1729753026243,0.119088,67178.0,67176.0,0.01249335]
[1729753026463,0.119088,67178.0,67173.0,0.122112]
[1729753026743,0.119088,67177.0,67173.0,0.003017]
[1729753027649,0.119087,67178.0,67173.0,0.122111]
[1729753029261,0.119087,67178.0,67174.0,0.01249922]
[1729753031931,0.198584,67179.0,67174.0,0.01249922]
[1729753032135,0.119086,67178.0,67174.0,0.01249922]
[1729753032345,0.0795,67179.0,67174.0,0.01249922]
[1729753032641,0.198585,67179.0,67174.0,0.01249922]
[1729753033694,0.0795,67179.0,67175.0,0.119091]
[1729753034123,0.0795,67179.0,67176.0,0.01250183]
[1729753035020,0.198586,67179.0,67176.0,0.01250183]
[1729753035232,0.0795,67179.0,67177.0,0.119088]
[1729753035433,0.0795,67179.0,67175.0,0.119091]
[1729753035745,0.198584,67179.0,67177.0,0.0124989]
[1729753035950,0.198584,67179.0,67176.0,0.01250183]
[1729753036147,0.198584,67179.0,67178.0,0.01249597]
[1729753036355,0.0795,67179.0,67177.0,0.0124989]
[1729753036555,0.198585,67179.0,67178.0,0.01249597]
[1729753036962,0.198585,67179.0,67173.0,0.122112]
[1729753037194,0.198585,67179.0,67178.0,0.01249597]
[1729753037364,0.198585,67179.0,67173.0,0.122112]
[1729753037596,0.198585,67179.0,67178.0,0.01249597]
[1729753037799,0.0795,67179.0,67175.0,0.119091]
[1729753038009,0.0795,67179.0,67174.0,0.01250769]
[1729753038214,0.198586,67179.0,67178.0,0.01249597]
[1729753038423,0.198586,67179.0,67173.0,0.12211]
[1729753038628,0.198586,67179.0,67175.0,0.01250476]
[1729753038835,0.198586,67179.0,67178.0,0.01249597]
[1729753039040,0.198586,67179.0,67173.0,0.12211]
[1729753039254,0.198586,67179.0,67176.0,0.01250183]
[1729753039454,0.0795,67179.0,67176.0,0.01250183]
[1729753039660,0.0795,67179.0,67177.0,0.0124989]
[1729753039882,0.0795,67179.0,67175.0,0.119091]
[1729753040093,0.0795,67179.0,67178.0,0.01249597]
[1729753040305,0.0795,67179.0,67175.0,0.119091]
[1729753040511,0.0795,67179.0,67178.0,0.01249597]
[1729753040717,0.198584,67179.0,67178.0,0.01249597]
[1729753040922,0.119087,67178.0,67174.0,0.15050381]
[1729753041953,0.198585,67179.0,67174.0,0.26959681]
[1729753042200,0.119087,67178.0,67176.0,0.000825]
[1729753042623,0.200235,67179.0,67176.0,0.000825]
[1729753043565,0.119088,67177.0,67176.0,0.000825]
[1729753043794,0.22297704,67178.0,67176.0,0.000825]
[1729753044023,0.198488,67177.0,67176.0,0.000825]
[1729753044258,0.34239863,67177.0,67176.0,0.000825]
[1729753044504,0.298088,67177.0,67176.0,0.000825]
[1729753044745,0.36455394,67177.0,67176.0,0.000825]
[1729753045130,0.298088,67177.0,67176.0,0.000825]
[1729753045634,0.364612,67177.0,67176.0,0.000825]
[1729753046450,0.50094129,67177.0,67176.0,0.000825]
[1729753047568,0.85890133,67177.0,67176.0,0.000825]
[1729753047807,0.82170359,67177.0,67176.0,0.000825]
[1729753048062,0.8438589,67177.0,67176.0,0.000825]
[1729753048300,0.73308233,67177.0,67176.0,0.000825]
[1729753048546,0.8439113,67177.0,67176.0,0.000825]
[1729753049036,0.73308233,67177.0,67176.0,0.000825]
[1729753050062,0.59675304,67177.0,67176.0,0.000825]
[1729753050293,0.73308233,67177.0,67176.0,0.000825]
[1729753051424,0.73296899,67177.0,67176.0,0.000825]
[1729753052347,0.75624643,67177.0,67176.0,0.000825]
[1729753054684,0.86694369,67177.0,67176.0,0.000825]
[1729753056079,0.75624643,67177.0,67176.0,0.000825]
[1729753057045,0.46782914,67177.0,67176.0,0.000825]
[1729753057299,0.298088,67177.0,67176.0,0.000825]
[1729753057549,0.198488,67177.0,67176.0,0.000825]
[1729753057794,0.33481729,67177.0,67176.0,0.000825]
[1729753059443,0.56770029,67177.0,67176.0,0.000825]
[1729753059985,0.7182041,67177.0,67176.0,0.000825]
[1729753061319,0.7182041,67177.0,67176.0,0.000525]
[1729753064605,0.7202041,67177.0,67176.0,0.000525]
[1729753065118,0.7182041,67177.0,67176.0,0.000525]
[1729753066717,0.7198541,67177.0,67176.0,0.000525]
[1729753074498,0.76658777,67177.0,67176.0,0.000525]
[1729753075138,0.334296,67163.0,67162.0,0.000825]
[1729753075354,0.42582748,67163.0,67162.0,0.000825]
[1729753084933,0.52582748,67163.0,67162.0,0.000825]
[1729753085480,0.6836585,67163.0,67162.0,0.000825]
[1729753085944,0.52582748,67163.0,67162.0,0.000825]
[1729753086164,0.70575835,67163.0,67162.0,0.000825]
[1729753086369,0.61422687,67163.0,67162.0,0.000825]
[1729753087557,0.51397302,67163.0,67162.0,0.000825]
[1729753088023,0.69390389,67163.0,67162.0,0.000825]
[1729753088528,0.62447226,67163.0,67162.0,0.000825]
[1729753088778,0.60239467,67163.0,67162.0,0.000825]
[1729753089006,0.69392789,67163.0,67162.0,0.000825]
[1729753089209,0.60239641,67163.0,67162.0,0.000825]
[1729753089443,0.60239494,67163.0,67162.0,0.000825]
[1729753089676,0.60240335,67163.0,67162.0,0.000825]
[1729753090611,0.60240646,67163.0,67162.0,0.000825]
[1729753092511,0.60241113,67163.0,67162.0,0.000825]
[1729753092747,0.51397302,67163.0,67162.0,0.000825]
[1729753092977,0.60241113,67163.0,67162.0,0.000825]
[1729753093669,0.51397302,67163.0,67162.0,0.000825]
[1729753094144,0.42244154,67163.0,67162.0,0.000825]
[1729753094371,0.49207905,67163.0,67162.0,0.000825]
[1729753094553,0.42574448,67163.0,67162.0,0.000825]
[1729753097612,0.49207905,67163.0,67162.0,0.000825]
[1729753098665,0.28544757,67163.0,67162.0,0.000825]
[1729753098891,0.31064448,67163.0,67162.0,0.000825]
[1729753099555,0.53862152,67163.0,67162.0,0.000825]
[1729753099772,0.49004448,67163.0,67162.0,0.000825]
[1729753099996,0.55727119,67163.0,67162.0,0.000825]
[1729753101526,0.43816159,67163.0,67148.0,0.12893404]
[1729753101746,0.09153148,67154.0,67147.0,0.0941]
[1729753101971,0.119133,67152.0,67147.0,0.213241]
[1729753102661,0.238253,67156.0,67148.0,0.0379]
[1729753102889,0.11913,67154.0,67149.0,0.0941]
[1729753103120,0.22297704,67155.0,67149.0,0.0941]
[1729753103334,0.119131,67153.0,67149.0,0.0941]
[1729753103563,0.119129,67154.0,67149.0,0.213237]
[1729753104218,0.119129,67154.0,67150.0,0.01441463]
[1729753104428,0.357388,67154.0,67150.0,0.01441463]
[1729753104635,0.119131,67153.0,67150.0,0.01441463]
[1729753104846,0.119132,67152.0,67150.0,0.01441463]
[1729753105747,0.119131,67153.0,67150.0,0.01441463]
[1729753106216,0.238256,67155.0,67150.0,0.01441463]
[1729753106449,0.119133,67152.0,67150.0,0.01441463]
[1729753106689,0.357387,67154.0,67150.0,0.01441463]
[1729753107903,0.119131,67153.0,67150.0,0.01441463]
[1729753108383,0.119133,67152.0,67150.0,0.01441463]
[1729753108843,0.238258,67154.0,67150.0,0.01441463]
[1729753109074,0.119131,67153.0,67150.0,0.01441463]
[1729753112259,0.119134,67151.0,67150.0,0.01441463]
[1729753112483,0.09153148,67152.0,67150.0,0.01441463]
[1729753112702,0.21066348,67152.0,67147.0,0.119141]
[1729753112942,0.21066348,67152.0,67150.0,0.01424317]
[1729753113170,0.21066348,67152.0,67148.0,0.119139]
[1729753113387,0.09153148,67152.0,67151.0,0.01424023]
[1729753113607,0.09153148,67152.0,67148.0,0.119139]
[1729753113824,0.09153148,67152.0,67151.0,0.01424023]
[1729753114049,0.09153148,67152.0,67150.0,0.000825]
[1729753114050,0.119134,67151.0,67150.0,0.000825]
[1729753114294,0.28866548,67151.0,67150.0,0.000825]
[1729753116109,0.75244089,67151.0,67150.0,0.000825]
[1729753116314,0.66576929,67151.0,67150.0,0.000825]
[1729753117884,0.68908621,67151.0,67150.0,0.000825]
[1729753119282,0.51211696,67140.0,67139.0,0.0125]
[1729753119520,0.66262077,67140.0,67139.0,0.0125]
[1729753120717,1.07712929,67140.0,67139.0,0.0125]
[1729753120960,1.07712929,67140.0,67125.0,9e-05]
[1729753120961,0.41294096,67126.0,67125.0,9e-05]
[1729753121435,0.229878,67126.0,67125.0,0.01443463]
[1729753121652,0.41294096,67126.0,67125.0,0.01443463]
[1729753121901,0.41294096,67126.0,67125.0,9e-05]
[1729753122385,0.36642958,67126.0,67125.0,9e-05]
[1729753125775,0.33342958,67126.0,67125.0,9e-05]
[1729753126061,0.0877,67130.0,67125.0,9e-05]
[1729753126303,0.119174,67129.0,67125.0,0.000915]
[1729753126544,0.229167,67133.0,67127.0,0.119175]
[1729753126761,0.119168,67132.0,67126.0,0.01439549]
[1729753127005,0.11,67133.0,67128.0,0.0144338]
[1729753127230,0.1,67134.0,67127.0,0.01443674]
[1729753127466,0.0777,67135.0,67125.0,0.239274]
[1729753127467,0.0777,67140.0,67129.0,0.01443087]
[1729753127718,0.119162,67136.0,67130.0,0.26967381]
[1729753127934,0.238318,67137.0,67130.0,0.01442793]
[1729753128196,0.25571658,67134.0,67128.0,0.119174]
[1729753128438,0.25571658,67134.0,67131.0,0.014425]
[1729753128652,0.25571658,67134.0,67127.0,0.119176]
[1729753128653,0.119167,67133.0,67127.0,0.119176]
[1729753128873,0.119167,67133.0,67125.0,0.120094]
[1729753129093,0.13655158,67134.0,67128.0,0.0144338]
[1729753129315,0.119166,67133.0,67126.0,0.119178]
[1729753129537,0.13655158,67134.0,67129.0,0.01443087]
[1729753129812,0.119167,67133.0,67125.0,0.120094]
[1729753130026,0.13655158,67134.0,67130.0,0.01442793]
[1729753130242,0.119167,67133.0,67126.0,0.119178]
[1729753130468,0.22297704,67132.0,67131.0,0.014425]
[1729753130723,0.13655158,67131.0,67125.0,0.120095]
[1729753131182,0.13655158,67131.0,67126.0,0.01443967]
[1729753134224,0.25572158,67131.0,67126.0,0.01443967]
[1729753135734,0.077,67130.0,67126.0,0.01443967]
[1729753136246,0.238336,67132.0,67125.0,0.000915]
[1729753136476,0.119173,67129.0,67127.0,0.01442122]
[1729753136723,0.119173,67129.0,67126.0,0.01442416]
[1729753136930,0.119173,67129.0,67125.0,0.000915]
[1729753137146,0.238339,67131.0,67123.0,0.10657152]
[1729753137147,0.119172,67130.0,67123.0,0.10657152]
[1729753137372,0.238339,67131.0,67126.0,0.01511018]
[1729753137588,0.238339,67131.0,67122.0,0.120026]
[1729753137589,0.119176,67128.0,67122.0,0.120026]
[1729753137809,0.119172,67130.0,67127.0,0.01510725]
[1729753138021,0.119172,67130.0,67123.0,0.119183]
[1729753138242,0.238339,67131.0,67128.0,0.01510431]
[1729753138453,0.119173,67129.0,67123.0,0.119183]
[1729753138893,0.22297704,67133.0,67125.0,0.000825]
[1729753139112,0.11917,67131.0,67125.0,0.000825]
[1729753139323,0.22297704,67133.0,67125.0,0.000825]
[1729753139534,0.119172,67130.0,67125.0,0.000825]
[1729753139746,0.119172,67130.0,67126.0,0.01511018]
[1729753139961,0.119172,67130.0,67125.0,0.000825]
[1729753140181,0.45188158,67134.0,67130.0,0.11917]
[1729753140182,0.077,67134.0,67130.0,0.11917]
[1729753140417,0.22297704,67131.0,67128.0,0.119174]
[1729753140650,0.196165,67134.0,67126.0,0.238357]
[1729753140651,0.196165,67134.0,67131.0,0.01509551]
[1729753140869,0.119173,67129.0,67125.0,0.000825]
[1729753141168,0.077,67134.0,67132.0,0.01509257]
[1729753141169,0.357498,67133.0,67132.0,0.01509257]
[1729753141383,0.357498,67133.0,67125.0,0.000825]
[1729753141384,0.119171,67131.0,67126.0,0.01511018]
[1729753141596,0.22297704,67133.0,67125.0,0.000825]
[1729753141808,0.22297704,67133.0,67127.0,0.01510725]
[1729753142027,0.119172,67130.0,67126.0,0.01511018]
[1729753142260,0.119172,67130.0,67125.0,0.000825]
[1729753142511,0.22297704,67133.0,67127.0,0.01510725]
[1729753142754,0.119171,67131.0,67126.0,0.01511018]
[1729753142947,0.11917,67131.0,67128.0,0.01510431]
[1729753143222,0.11917,67131.0,67125.0,0.120004]
[1729753143464,0.119172,67130.0,67129.0,0.01527221]
[1729753143703,0.119172,67130.0,67125.0,0.000825]
[1729753144177,0.238338,67132.0,67125.0,0.000825]
[1729753144178,0.32993849,67131.0,67126.0,0.01528102]
[1729753144610,0.09159949,67131.0,67126.0,0.01528102]
[1729753144874,0.119172,67130.0,67126.0,0.01528102]
[1729753145108,0.09159949,67131.0,67126.0,0.01528102]
[1729753145333,0.21076949,67131.0,67126.0,0.01528102]
[1729753146307,0.119171,67130.0,67126.0,0.01528102]
[1729753146545,0.09159949,67131.0,67126.0,0.01528102]
[1729753146785,0.22297704,67133.0,67126.0,0.13445902]
[1729753146994,0.119168,67132.0,67126.0,0.13445902]
[1729753147485,0.09159949,67130.0,67126.0,0.01528102]
[1729753151393,0.119174,67129.0,67126.0,0.01528102]
[1729753152035,0.119171,67131.0,67126.0,0.01528102]
[1729753152252,0.238339,67131.0,67126.0,0.01528102]
[1729753152494,0.119172,67130.0,67125.0,0.000825]
[1729753152708,0.119172,67130.0,67127.0,0.01536287]
[1729753152924,0.119172,67130.0,67126.0,0.0153658]
[1729753153157,0.119172,67130.0,67128.0,0.01535993]
[1729753153636,0.119172,67130.0,67125.0,0.000825]
[1729753154069,0.119172,67130.0,67126.0,0.0153658]
[1729753154729,0.119176,67128.0,67126.0,0.0153658]
[1729753155364,0.194978,67126.0,67125.0,0.000825]
[1729753155782,0.0758,67126.0,67125.0,0.000825]
[1729753156449,0.0758,67126.0,67125.0,0.01619374]
[1729753156652,0.0758,67126.0,67125.0,0.000825]
[1729753156857,0.0758,67126.0,67125.0,0.01619555]
[1729753157068,0.0758,67126.0,67125.0,0.000825]
[1729753157275,0.0758,67126.0,67125.0,0.01619555]
[1729753157497,0.0758,67126.0,67125.0,0.000825]
[1729753157707,0.0758,67126.0,67125.0,0.01619555]
[1729753157922,0.0758,67126.0,67125.0,0.000825]
[1729753158132,0.0758,67126.0,67125.0,0.01619555]
[1729753158133,0.04225253,67126.0,67125.0,0.01619555]
[1729753158336,0.04225253,67126.0,67125.0,0.000825]
[1729753158558,0.04225253,67126.0,67125.0,0.01619555]
[1729753161792,0.04225253,67126.0,67125.0,0.000825]
[1729753162004,0.04225253,67126.0,67125.0,0.01630631]
[1729753162215,0.04225253,67126.0,67125.0,0.000825]
[1729753162430,0.22297704,67132.0,67125.0,0.01928571]
[1729753162640,0.22297704,67132.0,67125.0,0.000825]
[1729753162853,0.22297704,67132.0,67127.0,0.119176]
[1729753163295,0.22297704,67132.0,67128.0,0.0154725]
[1729753163500,0.120819,67133.0,67128.0,0.0154725]
[1729753163714,0.120819,67133.0,67127.0,0.119175]
[1729753163964,0.120819,67133.0,67129.0,0.01546957]
[1729753164231,0.119168,67132.0,67128.0,0.0154725]
[1729753164446,0.22462904,67133.0,67125.0,0.120004]
[1729753164698,0.119168,67132.0,67125.0,0.120004]
[1729753164901,0.119168,67132.0,67126.0,0.01547837]
[1729753165346,0.11917,67131.0,67126.0,0.01547837]
[1729753165838,0.119173,67129.0,67126.0,0.01547837]
[1729753166072,0.28657649,67127.0,67126.0,0.01547837]
[1729753166505,0.119178,67126.0,67125.0,0.000825]
[1729753166978,0.16739949,67127.0,67125.0,0.000825]
[1729753167203,0.16739949,67127.0,67125.0,0.01630772]
[1729753167425,0.0758,67127.0,67125.0,0.01630772]
[1729753168344,0.21077749,67126.0,67125.0,0.01630772]
[1729753168580,0.21077749,67126.0,67125.0,0.000825]
[1729753169004,0.21077749,67126.0,67125.0,0.01630772]
[1729753169227,0.30237698,67126.0,67125.0,0.01630772]
[1729753169669,0.40097698,67126.0,67125.0,0.000825]
[1729753169902,0.30937749,67126.0,67125.0,0.000825]
[1729753170612,0.35365901,67126.0,67125.0,0.000825]
[1729753170830,0.37579977,67126.0,67125.0,0.000825]
[1729753171043,0.30937749,67126.0,67125.0,0.000825]
[1729753171477,0.35367653,67126.0,67125.0,0.000825]
[1729753171999,0.30937749,67126.0,67125.0,0.000825]
[1729753172224,0.35367885,67126.0,67125.0,0.000825]
[1729753172446,0.37579977,67126.0,67125.0,0.000825]
[1729753172671,0.30937749,67126.0,67125.0,0.000825]
[1729753172909,0.37579977,67126.0,67125.0,0.000825]
[1729753174645,0.30937749,67126.0,67125.0,0.000825]
[1729753175069,0.35366103,67126.0,67125.0,0.000825]
[1729753175281,0.30937749,67126.0,67125.0,0.000825]
[1729753175518,0.35366117,67126.0,67125.0,0.000825]